Cogmind - Beta 12 @@@ ROGUE MODE // 2023.05.29 @ 23:16:24 Player: snowphil Result: Destroyed by as-77161 with Assembled F-torch Performance ------------- Evolutions (0) 0 Regions Visited (4) 800 Robots Destroyed (32) 160 Value Destroyed (568) 568 Prototype IDs (31) 620 Alien Tech Used (0) 0 Bonus (296) 296 TOTAL SCORE: 2444 Bonus ------- Aligned with FarCom 300 Friendly Fire -4 Cogmind --------- Core Integrity 0/250 Matter 64/300 Energy 56/100 System Corruption 13% Temperature Warm (141) Movement Core (250) Ox4 Location -9/Mines Parts ------- > --- POWER (1) -------- (None) > --- PROPULSION (2) --- (None) > --- UTILITY (2) ------ Medium Storage Unit PSU Rigger > --- WEAPON (2) ------- Spread Laser > --- INVENTORY (10) --- Light Ion Engine Light Ion Engine Aluminum Leg Medium Matter Pod (0) Sensor Array Splice Drone Bay (6/6) Beam Cannon Assault Rifle Maul Peak State ------------ > --- POWER ------------ Light Ion Engine > --- PROPULSION ------- Wheel Wheel > --- UTILITY ---------- Medium Storage Unit PSU Rigger > --- WEAPON ----------- Makeshift Shrapnel Gun Rocket Launcher > --- INVENTORY -------- Light Ion Engine Light Ion Engine Aluminum Leg Medium Matter Pod Sensor Array Splice Drone Bay Spread Laser Beam Cannon Assault Rifle Maul [Rating: 19] Favorites ----------- Power Light Ion Engine Engine Light Ion Engine Propulsion Aluminum Leg Leg Aluminum Leg Wheel Wheel Utility Medium Storage Unit Device Sensor Array Storage Medium Storage Unit Protection Light Armor Plating Weapon Maul Energy Gun Spread Laser Ballistic Gun Assault Rifle Launcher Grenade Launcher Impact Weapon Maul Build | -11 -10 -10 -10 -9 ------- Run | Jun Mat Min Exi Min Slots Evolved . | . . . . . Power . | . . . . . Propulsion . | . . . . . Utility . | . . . . . Weapon . | . . . . . Parts Attached 58 | 6 28 13 6 5 Power 8 | 1 5 2 . . Engine 8 | 1 5 2 . . Core . | . . . . . Reactor . | . . . . . Propulsion 11 | 2 5 4 . . Treads . | . . . . . Leg 7 | 2 3 2 . . Wheel 4 | . 2 2 . . Hover . | . . . . . Flight . | . . . . . Utility 13 | 1 4 4 3 1 Device 9 | . 2 4 2 1 Storage 3 | 1 1 . 1 . Processor . | . . . . . Hackware . | . . . . . Protection 1 | . 1 . . . Artifact . | . . . . . Weapon 26 | 2 14 3 3 4 Energy Gun 9 | 1 7 . . 1 Energy Cannon . | . . . . . Ballistic Gun 11 | 1 4 2 3 1 Ballistic Cannon . | . . . . . Launcher 3 | . . 1 . 2 Special Weapon . | . . . . . Impact Weapon 3 | . 3 . . . Slashing Weapon . | . . . . . Piercing Weapon . | . . . . . Special Melee Weapon . | . . . . . Unidentified Prototypes 3 | . 1 2 . . Parts Lost 10 | . 3 2 . 5 Power 2 | . . 1 . 1 Propulsion 4 | . 1 1 . 2 Utility 1 | . 1 . . . Weapon 3 | . 1 . . 2 Highest Loss Streak 5 | . 2 1 . 5 To Critical Strikes . | . . . . . Average Slot Usage (%) 91 | . 85 98 99 95 Engine 13 | . 13 13 14 9 Leg 13 | . 16 13 . . Wheel 11 | . 5 14 28 28 Device 7 | . 1 13 14 14 Storage 14 | . 14 14 14 14 Protection 2 | . 4 . . . Energy Gun 3 | . 6 . . 9 Ballistic Gun 12 | . 12 8 24 14 Launcher 4 | . . 12 2 4 Impact Weapon 7 | . 9 7 . . Naked Turns . | . . . . . Heaviest Build 26 | 10 22 26 19 20 Greatest Support 20 | 20 20 20 20 20 Greatest Overweight (x) 1 | . 1 1 . . Average Overweight (x) . | . . . . . Largest Inventory Capacity 10 | 8 10 10 10 10 Average Capacity 9 | 7 9 10 10 10 Most Carried 10 | 5 10 10 10 10 Average Carried 9 | 2 9 9 9 9 Final Capacity 10 | 8 10 10 10 10 Final Carried 10 | 4 10 10 10 9 Class Distribution -------------------- 100% | Mutant Dominant Class ---------------- Mutant | -10/Materials Mutant | -10/Mines Mutant | -10/Exiles Mutant | -9/Mines Resources | -11 -10 -10 -10 -9 ----------- Run | Jun Mat Min Exi Min Matter Collected 749 | 242 232 163 100 12 Remotely . | . . . . . Salvage Created 452 | . 275 139 . 38 Parts 39 | . 10 22 . 7 Haulers Intercepted . | . . . . . Recyclers Shooed . | . . . . . Parts Field Recycled . | . . . . . Retrieved Matter . | . . . . . Parts Self-Destructed . | . . . . . Prevented . | . . . . . Kills | -11 -10 -10 -10 -9 ------- Run | Jun Mat Min Exi Min Combat Hostiles Destroyed 32 | . 10 15 . 7 Melee 1 | . 1 . . . Guns 12 | . 9 1 . 2 AOE 19 | . . 14 . 5 Classes Destroyed 5 | . 3 1 . 1 Worker 2 | . . 2 . . Watcher 2 | . 2 . . . Swarmer 21 | . 3 15 . 3 Grunt 7 | . 7 . . . Assembled 4 | . . . . 4 Best Kill Streak 7 | . 3 6 . 7 Combat Bots Only 7 | . 3 6 . 7 Max Kills in Single Turn 3 | . 1 3 . 3 Gunslinging . | . . . . . Exploded 3 | . . 3 . 3 Melee 1 | . 1 . . . Uniques/NPCs Destroyed . | . . . . . Combat | -11 -10 -10 -10 -9 -------- Run | Jun Mat Min Exi Min Damage Taken 1270 | . 548 301 12 409 Core 250 | . 82 44 . 124 Absorbed by Shields . | . . . . . Regen/Repaired (Parts) 35 | . 35 . . . Core Remaining (%) 100 | 100 . . . . Volleys Fired 64 | . 30 25 . 9 Largest 2 | . 2 1 . 2 Hottest 130 | . 130 30 . 98 Shots Fired 89 | . 53 25 1 10 Gun 71 | . 53 12 . 6 Cannon . | . . . . . Launcher 18 | . . 13 1 4 Special . | . . . . . Kinetic 25 | . 13 12 . . Thermal 46 | . 40 . . 6 Explosive 18 | . . 13 1 4 Electromagnetic . | . . . . . Robot Hit Streak 7 | . 7 2 . 2 Robot Miss Streak 9 | . 7 9 . 5 Penetration Max . | . . . . . Secondary Targets 1 | . 1 . . . Max Gunslinging Chain 1 | . 1 . . . Shots Hit Robots 62 | . 48 8 . 6 Core Hits 75 | . 41 17 . 17 Critical Kills . | . . . . . Critical Parts Destroyed 2 | . 2 . . . Critical Strikes 2 | . 2 . . . Smash 2 | . 2 . . . Melee Attacks 16 | . 16 . . . Impact 16 | . 16 . . . Slashing . | . . . . . Piercing . | . . . . . Sneak Attacks . | . . . . . Combat Hostiles . | . . . . . Follow-up Attacks . | . . . . . Damage Inflicted 1860 | . 744 810 . 306 Guns 619 | . 491 44 . 84 Cannons . | . . . . . Explosions 988 | . . 766 . 222 Melee 253 | . 253 . . . Ramming . | . . . . . Kinetic 145 | . 101 44 . . Thermal 474 | . 390 . . 84 Explosive 988 | . . 766 . 222 Electromagnetic . | . . . . . Impact 253 | . 253 . . . Slashing . | . . . . . Piercing . | . . . . . Highest Corruption 13 | . 1 1 1 13 Average Corruption 1 | . 1 1 1 3 Corruption Purged . | . . . . . Corruption Blocked . | . . . . . Effects 8 | . . 2 5 1 Message Errors 1 | . . . 1 . Matter Fused 2 | . . 1 1 . Heat Flow Errors 1 | . . . 1 . Energy Discharges 1 | . . . 1 . Parts Fused 1 | . . 1 . . Misfires 1 | . . . 1 . Alerts 1 | . . . . 1 Overload Shots . | . . . . . Overflow Damage 203 | . 114 89 . . Projectiles . | . . . . . Explosions 96 | . 7 89 . . Melee 107 | . 107 . . . Knockbacks 2 | . 2 . . . Impact 2 | . 2 . . . Kinetic . | . . . . . Secondary . | . . . . . Self-Inflicted Damage 340 | . 87 144 12 97 Shots 10 | . 1 6 1 2 Rammed . | . . . . . Targets Rammed . | . . . . . Kicked . | . . . . . Crushed . | . . . . . Highest Temperature 390 | . 390 . 203 121 Average Temperature 166 | . 181 . 103 44 Received Heat Transfer 396 | . 276 . . 120 Effects 5 | . 5 . . . Shutdowns 1 | . 1 . . . Energy Bleed 1 | . 1 . . . Interference 1 | . 1 . . . Short Circuit 1 | . 1 . . . Damage (minor) 1 | . 1 . . . Siege Activations . | . . . . . Robots Corrupted . | . . . . . Combat Hostiles . | . . . . . Parts Fried 4 | . 4 . . . Impact Corruptions 4 | . 4 . . . Robots Melted . | . . . . . Combat Hostiles . | . . . . . Parts Melted . | . . . . . Heat Transferred 605 | . 495 . . 110 Parts Sabotaged . | . . . . . Parts Stolen . | . . . . . Parts Stripped . | . . . . . Power Chain Reactions . | . . . . . Missiles Intercepted . | . . . . . Alert | -11 -10 -10 -10 -9 ------- Run | Jun Mat Min Exi Min Peak Influence 302 | . 222 302 . 96 Initial 15 | . . 15 . . Average 84 | . 49 154 . 76 Maximum Alert Level 1 | . 1 1 . . Low Security (%) 84 | 100 98 58 . 100 Level 1 15 | . 1 41 . . Level 2 . | . . . . . Level 3 . | . . . . . Level 4 . | . . . . . Level 5 . | . . . . . High Security . | . . . . . Max Security . | . . . . . Squads Dispatched 2 | . 2 . . . Investigation 1 | . 1 . . . Extermination . | . . . . . Reinforcement 1 | . 1 . . . Assault . | . . . . . Garrison . | . . . . . Intercept . | . . . . . Searches Triggered . | . . . . . Construction Impeded . | . . . . . Haulers Reinforced . | . . . . . Active Scanning Responses . | . . . . . Cargo Convoy Interrupts . | . . . . . Stealth | -11 -10 -10 -10 -9 --------- Run | Jun Mat Min Exi Min Distress Signals 4 | . 3 1 . . Communications Jammed . | . . . . . Distress Signals . | . . . . . Times Spotted 47 | . 18 15 . 14 Peak Tracking Total 9 | . 4 3 . 9 Tactical Retreats 1 | . . 1 . . Traps | -11 -10 -10 -10 -9 ------- Run | Jun Mat Min Exi Min Traps Triggered 2 | . 2 . . . Indirectly . | . . . . . Trap Hack Attempts . | . . . . . Triggered . | . . . . . Disarmed . | . . . . . Reprogrammed . | . . . . . Reused . | . . . . . Traps Extracted . | . . . . . Installed . | . . . . . Triggered . | . . . . . Machines | -11 -10 -10 -10 -9 ---------- Run | Jun Mat Min Exi Min Machines Disabled 6 | . 1 5 . . Max in Single Turn 2 | . 1 2 . . Machines Repaired . | . . . . . Machines Sabotaged . | . . . . . Overloaded Fab Kills . | . . . . . Hacking | -11 -10 -10 -10 -9 --------- Run | Jun Mat Min Exi Min Machines Accessed 11 | . 9 1 1 . Terminals 7 | . 7 . . . Fabricators . | . . . . . Repair Stations 1 | . 1 . . . Recycling Units 1 | . 1 . . . Scanalyzers . | . . . . . Garrison Access . | . . . . . Total Hacks 34 | . 32 1 1 . Successful 23 | . 21 1 1 . Failed 11 | . 11 . . . Catastrophic . | . . . . . Database Lockouts . | . . . . . Manual 8 | . 7 . 1 . Terminals 26 | . 26 . . . Fabricators . | . . . . . Repair Stations 3 | . 3 . . . Recycling Units 3 | . 3 . . . Scanalyzers . | . . . . . Garrison Access . | . . . . . Terminal Hacks 16 | . 14 1 1 . Prototype ID Bank 3 | . 3 . . . Open Door 1 | . . 1 . . Branch Access Points 1 | . 1 . . . Alert Level 3 | . 3 . . . Unreport Threat 1 | . 1 . . . Locate Traps 3 | . 3 . . . Hauler Manifests 1 | . 1 . . . Zone Layout 2 | . 2 . . . EX-Prototype ID Bank 1 | . . . 1 . Fabricator Hacks . | . . . . . Repair Station Hacks 2 | . 2 . . . Scan Component 1 | . 1 . . . Repair 1 | . 1 . . . Recycling Unit Hacks 2 | . 2 . . . Retrieve Matter 1 | . 1 . . . Retrieve Components 1 | . 1 . . . Scanalyzer . | . . . . . Garrison Access Hacks . | . . . . . Unauthorized Hacks 3 | . 3 . . . Terminals 3 | . 3 . . . Botnet 3 | . 3 . . . Fabricators . | . . . . . Repair Stations . | . . . . . Recycling Units . | . . . . . Scanalyzers . | . . . . . Garrison Access . | . . . . . Data Cores Recovered . | . . . . . Used . | . . . . . Hacking Detections 8 | . 8 . . . Full Trace Events 1 | . 1 . . . Feedback Events . | . . . . . Feedback Blocked . | . . . . . Robot Schematics Acquired . | . . . . . Robots Built . | . . . . . Authchips . | . . . . . Time . | . . . . . Total Robot Build Rating . | . . . . . Part Schematics Acquired . | . . . . . Parts Built . | . . . . . Authchips . | . . . . . Time . | . . . . . Total Part Build Rating . | . . . . . Parts Repaired 1 | . 1 . . . Time 26 | . 26 . . . Parts Recycled . | . . . . . Recycled Matter . | . . . . . Retrieved Matter . | . . . . . Retrieved Components 2 | . 2 . . . Parts Scanalyzed . | . . . . . Part Schematics Acquired . | . . . . . Parts Damaged . | . . . . . Bothacking | -11 -10 -10 -10 -9 ------------ Run | Jun Mat Min Exi Min Used RIF Installer . | . . . . . Robots Hacked . | . . . . . Non-combat . | . . . . . Combat . | . . . . . Robot Hacks Applied . | . . . . . Relay Couplers Released . | . . . . . Fabnet Peak Effective % . | . . . . . Robots Rewired . | . . . . . Allies Hacked . | . . . . . Hacks Repelled . | . . . . . Allies | -11 -10 -10 -10 -9 -------- Run | Jun Mat Min Exi Min Total Allies . | . . . . . Largest Group . | . . . . . Highest-Rated Group . | . . . . . Highest-Rated Ally . | . . . . . Total Orders 5 | . . . 5 . EXPLORE 2 | . . . 2 . RETURN 3 | . . . 3 . Ally Attacks . | . . . . . Total Damage . | . . . . . Kills . | . . . . . Allies Corrupted . | . . . . . Allies Melted . | . . . . . Intel | -11 -10 -10 -10 -9 ------- Run | Jun Mat Min Exi Min Robot Analysis Total . | . . . . . Derelict Logs Recovered 3 | . . 2 . 1 Drone Launches 2 | . . . 2 . Drone Recoveries 2 | . . . 2 . Exploration | -11 -10 -10 -10 -9 ------------- Run | Jun Mat Min Exi Min Turns Passed 2658 | 82 1388 819 332 37 Spaces Moved 1830 | 62 775 688 290 15 Core 11 | 11 . . . . Treads . | . . . . . Legs 865 | 51 571 243 . . Wheels 954 | . 204 445 290 15 Hover . | . . . . . Flight . | . . . . . Fastest Speed 50 | 50 80 80 80 80 Average Speed 110 | 107 136 94 80 80 Slowest Speed 190 | 120 190 120 80 80 Overloaded Moves . | . . . . . Propulsion Burnouts . | . . . . . Robots Hopped . | . . . . . Cave-ins Triggered . | . . . . . Exploration Rate (%) 59 | 5 95 99 88 8 Regions Visited 4 Branch Regions 3 Pre-discovered Areas 1 | . . 1 . . Known Exits Taken 1 | . 1 . . . Unknown Exits Taken 3 | 1 . 1 1 . Scrap Searched 1 | . . 1 . . Spaces Dug 7 | . 7 . . . Terrain Destroyed 154 | . 42 61 11 40 Melee 7 | . 7 . . . Projectile . | . . . . . AOE 147 | . 35 61 11 40 Terrain Rammed . | . . . . . Walls Destroyed . | . . . . . Machines Disabled . | . . . . . Actions | -11 -10 -10 -10 -9 --------- Run | Jun Mat Min Exi Min Total 2347 | 77 1017 836 388 29 Wait 320 | . 141 93 86 . Move 1826 | 61 774 687 289 15 Hop . | . . . . . Pick Up 33 | 10 14 6 3 . Fast Attach 16 | . 9 5 2 . Attach 15 | 6 5 3 . 1 Detach 3 | . 2 1 . . Swap 27 | . 14 5 4 4 Drop 27 | . 12 11 4 . Fire 64 | . 30 25 . 9 Melee 16 | . 16 . . . Ram . | . . . . . Kick . | . . . . . Crush . | . . . . . Escape Stasis . | . . . . . Rewire . | . . . . . Trap . | . . . . . Miscellaneous . | . . . . . Route ------- -11/Junkyard -10/Materials (discovered 4 exits: [*Mat x3] / *Min) -10/Mines (discovered 3 exits: [*Mat x2] / *Exi) -10/Exiles (discovered 2 exits: [*Min x2]) -9/Mines History --------- Turn | Location | Event 3 | -11/Junkyard | Discovered new exit (range 15) 83 | -11/Junkyard | Entered Materials 309 | -10/Materials | Build established: Mutant 357 | -10/Materials | Discovered new exit (range 6) 580 | -10/Materials | Discovered new exit (range 15) 684 | -10/Materials | Identified exit to Mines 986 | -10/Materials | Discovered new exit (range 11) 1154 | -10/Materials | Repaired Aluminum Leg 1471 | -10/Materials | Entered Mines 1475 | -10/Mines | Learned Materials emergency access door positions 1497 | -10/Mines | Discovered new exit (range 8) 1515 | -10/Mines | Learned location of Storage (-7) 1540 | -10/Mines | Deemed a non-threat by the Exiles lab entrance 1541 | -10/Mines | Discovered new exit (range 5) 1571 | -10/Mines | Received a Rocket Launcher from a helpful Derelict 1873 | -10/Mines | Found a damaged Exp. Sensor Array with a note attached 1876 | -10/Mines | Found Prototype Device 1876 | -10/Mines | Identified Exp. Sensor Array 1991 | -10/Mines | Discovered new exit (range 11) 1994 | -10/Mines | Core integrity fell below 50% 2191 | -10/Mines | A weapon hastily lodged in a ceiling crevice suddenly fell to the ground 2238 | -10/Mines | Found the Drone Emporium 2241 | -10/Mines | Found Prototype Device 2241 | -10/Mines | Identified Splice Drone Bay 2290 | -10/Mines | Entered Exiles 2305 | -10/Exiles | Discovered new exit (range 26) 2345 | -10/Exiles | Discovered new exit (range 126) 2401 | -10/Exiles | Met 8R-AWN 2415 | -10/Exiles | Met EX-HEX 2475 | -10/Exiles | Met EX-DEC 2491 | -10/Exiles | Met EX-BIN 2503 | -10/Exiles | Aligned with FarCom system 2503 | -10/Exiles | Given EX-Vault access code 2522 | -10/Exiles | Opened EX-Vault 2530 | -10/Exiles | Found PSU Rigger 2551 | -10/Exiles | Warned to stay clear of 0b10 Research branches 2622 | -10/Exiles | Left Exiles lab with PSU Rigger 2622 | -10/Exiles | Entered Mines 2623 | -9/Mines | Assembled infested the area 2628 | -9/Mines | Assisted by a Guerilla fighting off Assembled 2647 | -9/Mines | Learned Materials terminal intel 2655 | -9/Mines | System corruption reached 10% 2658 | -9/Mines | Core integrity fell below 20% 2659 | -9/Mines | Destroyed by as-77161 with Assembled F-torch Last Messages --------------- 02641_ HV Slug penetrates Earth. 02642_ Acquired 9 matter. 02642_ Lgt. Ion Engine destroyed. 02642_ System corrupted by crushing effect (+2). 02643_ Acquired 3 matter. 02643_ as-58470 suffers critical hit (Destroy). 02643_ as-58470 destroyed. 02647_ Acquired derelict log, extracted data. Data stored: Materials terminal intel. 02650_ Mak. Shrapnel Gun destroyed. 02652_ as-32721 destroyed. 02653_ Rocket Launcher destroyed. 02653_ System corrupted by crushing effect (+5). 02654_ Wheel destroyed. 02654_ System corrupted by crushing effect (+2). 02654_ Destroyed Asb. Hover Unit. 02655_ System corrupted: IFF burst signal emitted. 02655_ Wheel destroyed. 02655_ System corrupted by crushing effect (+3). 02656_ as-12659 destroyed. Map ----- +----------------------------------------------------+ | | | | | | | | | | | | | | | | | | | | | | | | | | | | | | | ???????#######???????????????????????????????????? | | ???????# ##??????????????????????????????????? | | ???????# ##??????????????????????????????????? | | ???????# = ###????????????????????????????????? | | ???????# * ##???????????????????????????????? | | ???????# =[=##?????????###??????????????????? | | ???????# % % [*#???????## ##""###????????????? | | ???????##### = ##???### X #????????????? | | ???????????#%% * ##?## #????????????? | | ???????????# #;### aa #???????????????? | | ???????????## ## %@ #???????????????????? | | ????????????## % # ## aa #???????????????????? | | ????????????# ## #???????????????????? | | ????????????### ####### #???????????????????? | | ??????????????# ###?????### #???????????????????? | | ?????????????? #?????????? #???????????????????? | | ????????????? ###?????????? #???????????????????? | | ????????????? ?????????????? #???????????????????? | | ???????????? ??????????????? #???????????????????? | | ???????????? ??????????????? #???????????????????? | | ??????????? ?????????????????#???????????????????? | | ?????????????????????????????????????????????????? | | ?????????????????????????????????????????????????? | | ?????????????????????????????????????????????????? | | ?????????????????????????????????????????????????? | | ?????????????????????????????????????????????????? | | ?????????????????????????????????????????????????? | | ?????????????????????????????????????????????????? | | ?????????????????????????????????????????????????? | | ?????????????????????????????????????????????????? | | ?????????????????????????????????????????????????? | | ?????????????????????????????????????????????????? | | ?????????????????????????????????????????????????? | | ?????????????????????????????????????????????????? | | ?????????????????????????????????????????????????? | +----------------------------------------------------+ Best States ------------- Heat Dissipation 25 Energy Generation 10 Energy Capacity 250 Matter Stores 300 Matter Capacity 300 Sight Range 16 Robot Scan Range 14 Terrain Scan Density 10 Armor Coverage 150 Evasion (%) 55 Item Schematics ----------------- None Robot Schematics ------------------ None Fabricated ------------ Nothing Alien Tech Used ----------------- None Achievements -------------- None Challenges ------------ None Game ------ Seed PrecisionNetworkAirjet Manual? 0 Play Time 00:39:53 Cumulative 115.6 hours Start 2023.05.29 @ 22:35:51 End 2023.05.29 @ 23:16:24 Sessions 1 Manual Loads 0 Difficulty Rogue Special Mode None Game No. 18 Rogue 16 Adventurer 0 Explorer 2 Win Type - Total 3 Types 0/0/0/3/0/0/0/0/0 Lore% 31 Gallery% 37 Achievement% 46 Wizard Run 0 Options --------- ASCII 1 Keyboard 0 Movement Mouse Keybinds 0 Fullscreen 1 Font 18/SmallcapsGlow Map View 70x50 Tactical HUD 1 Map Filters NONE Filters NONE Steam 1 RUN: 79deeda3-b092-40ee-b125-c8bb44d9ca28